bitfinex/quotes_SOLUSD_20250507
["timestamp","ask_amount","ask_price","bid_price","bid_amount"]
[1746628965838,26.0,147.21,147.15,66.02]
[1746628966043,20.78644496,147.18,147.15,66.02]
[1746628968735,20.78644496,147.2,147.17,50.0]
[1746628969248,26.0,147.21,147.17,50.0]
[1746628969249,46.78644496,147.21,147.17,50.0]
[1746628969636,20.78644496,147.22,147.19,50.0]
[1746628969948,20.78644496,147.23,147.2,16.02]
[1746628970326,20.78644496,147.22,147.2,16.02]
[1746628971846,20.78644496,147.21,147.2,16.02]
[1746628977281,32.79134827,147.25,147.2,16.02]
[1746628977482,26.0,147.25,147.2,16.02]
[1746628977773,20.78644496,147.26,147.23,50.0]
[1746628978182,20.78644496,147.25,147.23,50.0]
[1746628985363,20.78644496,147.24,147.21,68.64964886]
[1746628985533,20.78644496,147.23,147.21,68.64964886]
[1746628985962,20.78644496,147.24,147.21,68.64964886]
[1746628992865,20.78644496,147.22,147.2,16.02]
[1746628993069,33.7262,147.26,147.2,16.02]
[1746628993275,20.78644496,147.22,147.2,16.02]
[1746628996579,20.78644496,147.24,147.21,50.0]
[1746628996786,20.78644496,147.23,147.21,50.0]
[1746628997483,20.78644496,147.24,147.21,50.0]
[1746629001386,26.0,147.26,147.21,50.0]
[1746629001765,20.78644496,147.25,147.21,50.0]
[1746629004097,20.78644496,147.25,147.2,16.02]
[1746629004098,137.7,147.28,147.23,50.0]
[1746629004397,20.78644496,147.27,147.23,50.0]
[1746629005687,20.78644496,147.26,147.23,50.0]
[1746629005995,40.68902207,147.3,147.23,50.0]
[1746629005996,20.78644496,147.24,147.23,50.0]
[1746629006192,20.78644496,147.24,147.21,50.0]
[1746629006419,20.78644496,147.23,147.21,50.0]
[1746629008305,20.78644496,147.24,147.21,50.0]
[1746629008487,20.78644496,147.25,147.23,50.0]
[1746629008689,20.78644496,147.26,147.23,50.0]
[1746629009405,137.7,147.29,147.23,50.0]
[1746629009906,20.78644496,147.27,147.23,50.0]
[1746629010106,20.78644496,147.26,147.23,50.0]
[1746629013306,20.78644496,147.27,147.23,50.0]
[1746629016301,20.78644496,147.27,147.24,18.64964886]
[1746629016608,20.78644496,147.27,147.25,65.98]
[1746629017721,20.78644496,147.26,147.25,65.98]
[1746629018007,20.78644496,147.27,147.25,65.98]
[1746629020986,20.78644496,147.26,147.25,65.98]
[1746629021705,40.6888749,147.3,147.25,65.98]
[1746629021895,20.78644496,147.26,147.25,65.98]
[1746629026007,40.6888749,147.3,147.25,65.98]
[1746629026197,20.78644496,147.26,147.25,65.98]
[1746629029019,20.78644496,147.27,147.25,65.98]
[1746629029230,46.78644496,147.3,147.27,50.0]
[1746629029728,20.78644496,147.29,147.27,50.0]
[1746629030712,20.78644496,147.3,147.27,50.0]
[1746629031719,20.78644496,147.29,147.27,50.0]
[1746629033012,20.78644496,147.3,147.27,50.0]
[1746629035525,20.78644496,147.29,147.27,50.0]
[1746629037402,20.78644496,147.3,147.27,50.0]
[1746629039122,6.78822898,147.32,147.27,50.0]
[1746629039429,20.78644496,147.28,147.27,50.0]
[1746629039806,20.78644496,147.28,147.25,65.98]
[1746629040004,20.78644496,147.26,147.25,65.98]
[1746629040331,20.78644496,147.26,147.25,15.98]
[1746629041830,6.78987566,147.28,147.25,15.98]
[1746629042125,20.78644496,147.26,147.25,15.98]
[1746629042330,8.1612,147.29,147.25,15.98]
[1746629042639,8.1612,147.29,147.25,65.98]
[1746629042640,20.78644496,147.26,147.25,65.98]
[1746629044921,20.78644496,147.26,147.25,15.98]
[1746629056822,20.78644496,147.29,147.25,65.98]
[1746629057015,20.78644496,147.3,147.25,65.98]
[1746629058963,20.78644496,147.29,147.25,65.98]
[1746629060144,26.0,147.32,147.27,50.0]
[1746629060447,20.78644496,147.3,147.27,50.0]
[1746629062273,20.78644496,147.29,147.27,50.0]
[1746629064166,20.78644496,147.28,147.25,65.98]
[1746629064877,20.78644496,147.26,147.25,65.98]
[1746629065562,20.78644496,147.27,147.25,65.98]
[1746629066061,20.78644496,147.26,147.25,15.98]
[1746629071693,27.57715526,147.26,147.25,15.98]
[1746629072193,27.57715526,147.26,147.21,65.96]
[1746629072363,20.78644496,147.22,147.21,65.96]
[1746629072566,20.78644496,147.22,147.21,15.96]
[1746629087387,20.78644496,147.22,147.17,65.96]
[1746629087589,20.78644496,147.2,147.17,65.96]
[1746629091080,20.78644496,147.19,147.17,65.96]
[1746629091282,20.78644496,147.2,147.17,65.96]
[1746629091488,20.78644496,147.19,147.14,1.6508]
[1746629091698,20.78644496,147.18,147.13,65.96]
[1746629092502,20.78644496,147.17,147.13,65.96]
[1746629093091,20.78644496,147.18,147.13,65.96]
[1746629093301,20.78644496,147.19,147.13,65.96]
[1746629095497,20.78644496,147.18,147.13,65.96]
[1746629095691,20.78644496,147.17,147.13,65.96]
[1746629102122,20.78644496,147.16,147.13,65.96]
[1746629108527,20.78644496,147.17,147.13,65.96]
[1746629110752,20.78644496,147.16,147.13,65.96]
[1746629111765,20.78644496,147.15,147.13,15.96]
[1746629112253,20.78644496,147.14,147.13,15.96]
[1746629114144,20.78644496,147.15,147.13,15.96]
[1746629114622,26.0,147.17,147.13,15.96]
[1746629114818,46.78644496,147.17,147.13,15.96]
[1746629115020,20.78644496,147.15,147.13,15.96]
[1746629117039,26.0,147.17,147.13,15.96]
[1746629117223,20.78644496,147.16,147.13,15.96]
[1746629121643,20.78644496,147.15,147.13,15.96]
[1746629122740,20.78644496,147.16,147.13,15.96]
[1746629124326,20.78644496,147.15,147.13,15.96]
[1746629124821,20.78644496,147.14,147.13,15.96]
[1746629125750,13.31789946,147.14,147.13,15.96]
[1746629127747,20.80886897,147.14,147.13,15.96]
[1746629128125,20.80886897,147.14,147.1,50.0]
[1746629128329,20.80886897,147.13,147.1,50.0]
[1746629129442,20.80886897,147.12,147.1,50.0]
[1746629129727,20.80886897,147.12,147.08,68.64964886]
[1746629130135,20.80886897,147.12,147.09,15.96]
[1746629131433,26.0,147.13,147.09,15.96]
[1746629131752,20.80886897,147.13,147.09,15.96]
[1746629132130,20.80886897,147.14,147.1,68.64964886]
[1746629132653,46.80886897,147.15,147.1,68.64964886]
[1746629133151,20.80886897,147.14,147.1,68.64964886]
[1746629135351,20.80886897,147.13,147.1,68.64964886]
[1746629136072,20.80886897,147.12,147.09,15.96]
[1746629137467,20.80886897,147.11,147.09,15.96]
[1746629138132,20.80886897,147.1,147.09,15.96]
[1746629140060,20.80886897,147.11,147.09,15.96]
[1746629143370,20.80886897,147.1,147.09,15.96]
[1746629146274,20.80886897,147.11,147.09,15.96]
[1746629147773,13.32305609,147.11,147.09,15.96]
[1746629148872,13.32305609,147.11,147.07,15.96]
[1746629149582,13.32305609,147.1,147.07,15.96]
[1746629157493,13.32305609,147.11,147.07,15.96]
[1746629159606,6.79689011,147.13,147.07,15.96]
[1746629159809,13.32305609,147.11,147.07,15.96]
[1746629162503,13.32305609,147.1,147.07,15.96]
[1746629163996,6.79767472,147.11,147.07,15.96]
[1746629163997,13.32305609,147.08,147.07,15.96]
[1746629166308,20.12207703,147.08,147.03,15.96]
[1746629166497,13.32305609,147.06,147.03,15.96]
[1746629166892,13.32305609,147.05,147.03,15.96]
[1746629167494,13.32305609,147.06,147.03,15.96]
[1746629169004,13.32305609,147.05,147.03,15.96]
[1746629169314,13.32305609,147.04,146.99,289.26964886]
[1746629169523,13.32305609,147.03,146.99,270.62]
[1746629169702,13.32305609,147.02,146.99,270.62]
[1746629171623,13.32305609,147.01,146.99,270.62]
[1746629171804,20.84333709,147.01,146.99,270.62]
[1746629172003,20.84333709,147.0,146.99,15.96]
[1746629174230,46.84333709,147.0,146.95,15.96]
[1746629174540,20.84333709,146.97,146.95,15.96]
[1746629174833,20.84333709,146.98,146.95,15.96]
[1746629175521,20.84333709,146.99,146.95,15.96]
[1746629175715,26.0,147.0,146.95,15.96]
[1746629175925,20.84333709,146.99,146.95,15.96]
[1746629176930,20.84333709,146.98,146.95,15.96]
[1746629177132,20.84333709,146.99,146.95,15.96]
[1746629178538,137.7,147.02,146.95,34.60964886]
[1746629178727,20.84333709,147.0,146.95,34.60964886]
[1746629179131,137.7,147.02,146.97,50.0]
[1746629179430,20.84333709,147.01,146.97,50.0]
[1746629180242,137.7,147.02,146.97,50.0]
[1746629180528,6.309,147.04,146.99,50.0]
[1746629180730,20.84333709,147.04,146.99,50.0]
[1746629181028,20.84333709,147.04,147.0,15.96]
[1746629181830,20.84333709,147.03,147.0,15.96]
[1746629183534,20.84333709,147.01,147.0,15.96]
[1746629184941,26.0,146.98,146.96,15.96]
[1746629185435,46.84333709,146.98,146.96,15.96]
[1746629185636,25.2028,146.99,146.96,15.96]
[1746629185836,20.84333709,146.98,146.96,15.96]
[1746629186038,46.04613709,146.99,146.96,15.96]
[1746629186420,20.84333709,146.98,146.96,15.96]
[1746629186933,25.2028,146.99,146.96,15.96]
[1746629186934,46.04613709,146.99,146.96,15.96]
[1746629187239,20.84333709,146.97,146.96,15.96]
[1746629187722,46.84333709,146.97,146.96,15.96]
[1746629188824,26.0,146.97,146.96,15.96]
[1746629189225,46.84333709,146.97,146.96,15.96]
[1746629189534,26.0,146.97,146.96,15.96]
[1746629190218,46.84333709,146.97,146.96,15.96]
[1746629190548,26.0,146.97,146.96,15.96]
[1746629192237,46.84333709,146.97,146.96,15.96]
[1746629192920,26.0,146.97,146.96,15.96]
[1746629193421,137.7,147.02,146.96,15.96]
[1746629193734,26.0,146.98,146.96,15.96]
[1746629195552,26.0,146.97,146.96,15.96]
[1746629197562,46.84333709,146.99,146.96,15.96]
[1746629197749,26.0,146.97,146.96,15.96]
[1746629199755,26.0,146.98,146.96,15.96]
[1746629202481,26.0,146.97,146.96,15.96]
[1746629203346,26.0,146.98,146.97,50.0]
[1746629205170,26.0,146.99,146.97,50.0]
[1746629205868,20.84333709,147.03,146.97,50.0]
[1746629206050,26.0,147.0,146.97,50.0]
[1746629207278,26.0,147.01,146.97,50.0]
[1746629208471,46.84333709,147.01,146.97,50.0]
[1746629210188,26.0,147.0,146.97,50.0]
[1746629212171,20.84333709,147.02,146.97,50.0]
[1746629212876,26.0,147.01,146.97,50.0]
[1746629214774,20.84333709,147.01,146.97,50.0]
[1746629214972,26.0,146.98,146.97,50.0]
[1746629215483,26.0,146.98,146.96,15.96]
[1746629216880,26.0,146.97,146.96,15.96]
[1746629222079,46.84333709,146.98,146.96,15.96]
[1746629222285,20.84333709,146.97,146.96,15.96]
[1746629224009,20.84333709,146.97,146.93,50.0]
[1746629224606,26.0,146.94,146.93,50.0]
[1746629225700,53.64751727,146.97,146.93,50.0]
[1746629225891,26.0,146.94,146.93,50.0]
[1746629226290,26.0,146.95,146.93,50.0]
[1746629227503,53.64748749,146.97,146.92,16.1]
[1746629228900,20.84333709,146.96,146.92,16.1]
[1746629229906,27.64802722,146.96,146.92,16.1]
[1746629230104,20.84333709,146.95,146.92,16.1]
[1746629230886,20.84333709,146.94,146.92,16.1]
[1746629231803,20.84333709,146.95,146.92,16.1]
[1746629234821,26.0,146.94,146.92,16.1]
[1746629235294,53.64791888,146.96,146.92,16.1]
[1746629235498,20.84333709,146.95,146.92,16.1]
[1746629237117,46.84333709,146.96,146.92,16.1]
[1746629237820,53.64799029,146.96,146.92,16.1]
[1746629238315,46.84333709,146.96,146.92,16.1]
[1746629238506,26.0,146.96,146.92,16.1]
[1746629239219,46.84333709,146.96,146.92,16.1]
[1746629239936,26.0,146.96,146.92,16.1]
[1746629240323,46.84333709,146.96,146.92,16.1]
[1746629249309,20.84333709,146.95,146.92,16.1]
[1746629249712,46.84333709,146.96,146.92,16.1]
[1746629251742,26.0,146.96,146.92,16.1]
[1746629252037,46.84333709,146.96,146.92,16.1]
[1746629253219,20.84333709,146.95,146.92,16.1]
[1746629253727,13.35142487,146.95,146.92,16.1]
[1746629254445,26.0,146.96,146.92,16.1]
[1746629255044,13.35142487,146.97,146.93,50.0]
[1746629255249,39.35142487,146.98,146.93,50.0]
[1746629255539,13.35142487,146.97,146.93,50.0]
[1746629256436,13.35142487,146.96,146.93,50.0]
[1746629256633,13.35142487,146.95,146.92,16.1]
[1746629256831,13.35142487,146.94,146.92,16.1]
[1746629257519,13.35142487,146.93,146.92,16.1]
[1746629259331,13.35142487,146.94,146.92,16.1]
[1746629259736,20.86359628,146.94,146.92,16.1]
[1746629261852,20.86359628,146.95,146.92,16.1]
[1746629262332,20.86359628,146.94,146.92,16.1]
[1746629264844,20.86359628,146.95,146.92,16.1]
[1746629268847,20.86359628,146.94,146.92,16.1]
[1746629269359,6.80463486,146.96,146.92,16.1]
[1746629269360,20.86359628,146.95,146.92,16.1]
[1746629270866,6.80410968,146.97,146.92,16.1]
[1746629271239,20.86359628,146.95,146.92,16.1]
[1746629275364,6.80480458,146.96,146.92,16.1]
[1746629275542,20.86359628,146.95,146.92,16.1]
[1746629277064,20.86359628,146.94,146.92,16.1]
[1746629278058,46.86359628,146.95,146.92,16.1]
[1746629278739,26.0,146.95,146.92,16.1]
[1746629280864,46.86359628,146.95,146.92,16.1]
[1746629281073,20.86359628,146.94,146.92,16.1]
[1746629281749,13.35245437,146.94,146.92,16.1]
[1746629283465,13.35245437,146.93,146.92,16.1]
[1746629284137,13.35245437,146.94,146.92,16.1]
[1746629284341,39.35245437,146.95,146.92,16.1]
[1746629284642,26.0,146.95,146.92,16.1]
[1746629287765,46.86036517,146.95,146.92,16.1]
[1746629289762,20.86036517,146.94,146.92,16.1]
[1746629291073,20.86036517,146.93,146.92,16.1]
[1746629296254,20.86036517,146.93,146.9,0.7872452]
[1746629296467,20.86036517,146.92,146.9,0.7872452]
[1746629296672,20.86036517,146.91,146.9,0.7872452]
[1746629298278,27.66725374,146.91,146.9,0.7872452]
[1746629298771,20.86036517,146.91,146.9,0.7872452]
[1746629300664,26.0,146.91,146.9,0.7872452]
[1746629300864,46.86036517,146.91,146.9,0.7872452]
[1746629301063,26.0,146.91,146.9,0.7872452]
[1746629301262,46.86036517,146.91,146.9,0.7872452]
[1746629302361,26.0,146.91,146.9,0.7872452]
[1746629303583,46.86036517,146.91,146.9,0.7872452]
[1746629305288,137.7,146.96,146.9,0.7872452]
[1746629305490,20.86036517,146.93,146.9,0.7872452]
[1746629305875,20.86036517,146.92,146.9,0.7872452]
[1746629311699,13.35654696,146.92,146.9,0.7872452]
[1746629312087,13.35654696,146.91,146.9,0.7872452]
[1746629313792,20.87181059,146.91,146.9,0.7872452]
[1746629315109,26.0,146.93,146.9,0.7872452]
[1746629315294,20.87181059,146.91,146.9,0.7872452]
[1746629324319,27.67869916,146.91,146.9,0.7872452]
[1746629326218,53.67869916,146.91,146.9,0.7872452]
[1746629326410,61.39199916,146.91,146.9,0.7872452]
[1746629327726,53.67869916,146.91,146.9,0.7872452]
[1746629329806,26.0,146.91,146.9,0.7872452]
[1746629330005,46.87181059,146.91,146.9,0.7872452]
[1746629330307,26.0,146.91,146.9,0.7872452]
[1746629330512,46.87181059,146.91,146.9,0.7872452]
[1746629333731,53.67869916,146.91,146.9,0.7872452]
[1746629335424,27.67869916,146.91,146.9,0.7872452]
[1746629336224,53.67869916,146.91,146.9,0.7872452]
[1746629336411,27.67869916,146.91,146.9,0.7872452]
[1746629337008,53.67869916,146.91,146.9,0.7872452]
[1746629337226,27.67869916,146.91,146.9,0.7872452]
[1746629337733,52.59454802,146.91,146.9,0.7872452]
[1746629337917,26.0,146.87,146.83,16.0]
[1746629338116,20.87181059,146.85,146.83,16.0]
[1746629339012,20.87181059,146.84,146.83,16.0]
[1746629340607,20.87181059,146.86,146.83,16.0]
[1746629342236,20.87181059,146.85,146.83,16.0]
[1746629342418,20.87181059,146.84,146.83,16.0]
[1746629342735,20.87181059,146.85,146.83,16.0]
[1746629344135,32.80875114,146.87,146.83,16.0]
[1746629344330,20.87181059,146.86,146.83,16.0]
[1746629345116,20.87181059,146.85,146.83,16.0]
[1746629347040,32.80882,146.87,146.83,16.0]
[1746629347340,20.87181059,146.85,146.83,16.0]
[1746629349019,20.87181059,146.86,146.83,16.0]
[1746629350243,26.0,146.87,146.83,16.0]
[1746629350439,46.87181059,146.87,146.83,16.0]
[1746629351040,20.87181059,146.86,146.83,16.0]
[1746629354041,20.87181059,146.85,146.83,16.0]
[1746629354828,20.87181059,146.84,146.83,16.0]
[1746629355425,137.7,146.9,146.83,16.0]
[1746629355624,20.87181059,146.88,146.84,50.0]
[1746629357245,20.87181059,146.87,146.84,50.0]
[1746629359740,20.87181059,146.86,146.84,50.0]
[1746629359940,20.87181059,146.85,146.83,16.0]
[1746629360952,20.87181059,146.84,146.83,16.0]
[1746629366842,26.0,146.84,146.83,16.0]
[1746629367040,46.87181059,146.84,146.83,16.0]
[1746629369744,46.87181059,146.84,146.81,16.0]
[1746629370462,137.7,146.87,146.82,50.0]
[1746629370667,20.87181059,146.86,146.82,50.0]
[1746629371562,20.87181059,146.85,146.82,50.0]
[1746629372565,20.87181059,146.84,146.82,50.0]
[1746629374166,20.87181059,146.83,146.81,16.0]
[1746629374368,20.87181059,146.82,146.81,16.0]
[1746629376467,6.81036394,146.84,146.81,16.0]
[1746629376669,20.87181059,146.82,146.81,16.0]
[1746629378248,26.0,146.82,146.81,16.0]
[1746629378448,46.87181059,146.82,146.81,16.0]
[1746629381281,6.80985867,146.85,146.81,16.0]
[1746629381457,46.87181059,146.82,146.81,16.0]
[1746629383096,26.0,146.82,146.81,16.0]
[1746629384785,46.87181059,146.82,146.81,16.0]
[1746629385994,53.68287175,146.82,146.81,16.0]
[1746629386290,53.68287175,146.82,146.77,16.0]
[1746629386483,20.87181059,146.8,146.77,16.0]
[1746629388294,20.87181059,146.79,146.77,16.0]
[1746629388474,20.87181059,146.78,146.77,16.0]
[1746629388982,20.87181059,146.79,146.77,16.0]
[1746629389178,6.81177024,146.81,146.77,16.0]
[1746629389387,20.87181059,146.78,146.77,16.0]
[1746629392481,27.68472788,146.78,146.77,16.0]
[1746629392686,27.68472788,146.78,146.73,16.0]
[1746629392988,20.87181059,146.75,146.73,16.0]
[1746629393403,20.87181059,146.74,146.73,16.0]
[1746629394191,20.87181059,146.74,146.69,16.0]
[1746629394379,20.87181059,146.73,146.69,16.0]
[1746629397202,32.81386156,146.76,146.69,16.0]
[1746629397407,20.87181059,146.73,146.69,16.0]
[1746629398489,20.87181059,146.72,146.69,16.0]
[1746629399912,20.87181059,146.71,146.69,16.0]
[1746629400584,20.87181059,146.7,146.69,16.0]
[1746629400817,26.0,146.68,146.65,16.02]
[1746629401019,20.87181059,146.66,146.65,16.02]
[1746629403415,26.0,146.68,146.65,16.02]
[1746629403707,20.87181059,146.66,146.65,16.02]
[1746629404089,26.0,146.63,146.61,0.9507428]
[1746629404290,20.87181059,146.62,146.61,0.9507428]
[1746629404699,26.0,146.64,146.61,0.9507428]
[1746629405009,20.87181059,146.62,146.61,0.9507428]
[1746629406112,27.69216252,146.62,146.61,0.9507428]
[1746629406315,26.0,146.59,146.52,50.0]
[1746629407199,20.87181059,146.57,146.52,50.0]
[1746629407398,26.0,146.6,146.52,50.0]
[1746629407616,20.87181059,146.57,146.52,50.0]
[1746629407911,26.0,146.6,146.52,50.0]
[1746629408307,20.87181059,146.57,146.52,50.0]
[1746629408504,26.0,146.6,146.52,50.0]
[1746629408704,20.87181059,146.59,146.55,50.0]
[1746629409009,8.36173667,146.64,146.56,17.1]
[1746629409187,20.87181059,146.6,146.56,17.1]
[1746629410005,26.0,146.6,146.56,17.1]
[1746629410302,46.87181059,146.6,146.56,17.1]
[1746629410508,1.508,146.68,146.59,50.0]
[1746629410812,20.87181059,146.66,146.59,50.0]
[1746629411004,46.87181059,146.65,146.59,50.0]
[1746629411204,20.87181059,146.64,146.59,50.0]
[1746629411410,26.0,146.65,146.59,50.0]
[1746629411411,20.87181059,146.63,146.59,50.0]
[1746629411913,20.87181059,146.61,146.57,51.5611]
[1746629412113,26.0,146.63,146.57,51.5611]
[1746629412420,20.87181059,146.62,146.57,51.5611]
[1746629412717,26.0,146.63,146.57,51.5611]
[1746629412918,46.87181059,146.63,146.57,51.5611]
[1746629413122,158.57181059,146.64,146.6,50.0]
[1746629413301,20.87181059,146.64,146.61,17.1]
[1746629414903,137.7,146.68,146.62,50.0]
[1746629415097,26.0,146.66,146.62,50.0]
[1746629415298,137.7,146.68,146.62,50.0]
[1746629415522,20.87181059,146.67,146.62,50.0]
[1746629415818,137.7,146.68,146.62,50.0]
[1746629416011,8.38826857,146.72,146.64,50.0]
[1746629416225,26.0,146.69,146.64,50.0]
[1746629416412,20.87181059,146.67,146.64,50.0]
[1746629416611,20.87181059,146.66,146.64,50.0]
[1746629416929,20.87181059,146.65,146.62,50.0]
[1746629417093,20.87181059,146.64,146.62,50.0]
[1746629417296,20.87181059,146.65,146.62,50.0]
[1746629417525,20.87181059,146.64,146.62,50.0]
[1746629417733,20.87181059,146.66,146.62,50.0]
[1746629418426,20.87181059,146.65,146.62,50.0]
[1746629418800,20.87181059,146.66,146.62,50.0]
[1746629419228,26.0,146.68,146.62,50.0]
[1746629419446,26.0,146.68,146.64,50.0]
[1746629420526,46.87181059,146.68,146.64,50.0]
[1746629421446,20.87181059,146.67,146.64,50.0]
[1746629423366,20.87181059,146.67,146.62,50.0]
[1746629423669,20.87181059,146.66,146.62,50.0]
[1746629424265,20.87181059,146.65,146.62,50.0]
[1746629424460,32.81760708,146.68,146.62,50.0]
[1746629424665,20.87181059,146.66,146.62,50.0]
[1746629425268,26.0,146.68,146.62,50.0]
[1746629425583,46.87181059,146.68,146.62,50.0]
[1746629425871,33.50247309,146.67,146.62,50.0]
[1746629426243,33.50247309,146.66,146.62,50.0]
[1746629426444,33.50247309,146.65,146.62,50.0]
[1746629426970,33.50247309,146.63,146.61,17.1]
[1746629427171,33.50247309,146.62,146.61,17.1]
[1746629427654,33.50247309,146.62,146.57,17.84]
[1746629427852,33.50247309,146.6,146.57,17.84]
[1746629428558,33.50247309,146.61,146.57,17.84]
[1746629430879,137.7,146.64,146.57,17.84]
[1746629431055,33.50247309,146.62,146.57,17.84]
[1746629431258,33.50247309,146.61,146.57,17.84]
[1746629431565,33.50247309,146.6,146.57,17.84]
[1746629431758,33.50247309,146.59,146.57,17.84]
[1746629431956,26.0,146.62,146.57,17.84]
[1746629431957,33.50247309,146.58,146.57,17.84]
[1746629432270,33.50247309,146.58,146.52,51.5192]
[1746629432457,33.50247309,146.58,146.53,17.86]
[1746629432655,59.50247309,146.59,146.54,50.0]
[1746629433046,33.50247309,146.58,146.53,17.86]
[1746629433368,33.50247309,146.56,146.53,17.86]
[1746629434470,33.50247309,146.57,146.53,17.86]
[1746629434975,33.50247309,146.56,146.53,17.86]
[1746629435168,33.50247309,146.57,146.53,17.8172544]
[1746629435570,33.50247309,146.56,146.53,17.8172544]
[1746629436266,33.50247309,146.58,146.53,17.8172544]
[1746629436460,26.0,146.59,146.54,50.0]
[1746629436875,171.20247309,146.6,146.54,50.0]
[1746629437561,33.50247309,146.6,146.54,50.0]
[1746629437877,33.50247309,146.59,146.54,50.0]
[1746629439382,39.35451148,146.61,146.54,50.0]
[1746629439672,33.50247309,146.59,146.54,50.0]
[1746629440354,33.50247309,146.58,146.54,50.0]
[1746629440976,177.05459222,146.61,146.54,50.0]
[1746629441179,33.50247309,146.59,146.54,50.0]
[1746629441567,33.50247309,146.58,146.54,50.0]
[1746629443459,33.50247309,146.59,146.54,50.0]
[1746629443868,33.50247309,146.58,146.54,50.0]
[1746629444582,33.50247309,146.57,146.53,17.8172544]
[1746629446690,177.05445735,146.61,146.53,17.8172544]
[1746629446860,137.7,146.6,146.53,17.8172544]
[1746629447068,137.7,146.6,146.54,50.0]
[1746629447279,33.50247309,146.59,146.54,50.0]
[1746629447577,33.50247309,146.58,146.54,50.0]
[1746629447792,20.96558179,146.58,146.54,50.0]
[1746629447960,20.96558179,146.58,146.53,17.8172544]
[1746629448280,20.96558179,146.54,146.53,17.8172544]
[1746629448466,20.96558179,146.56,146.53,17.8172544]
[1746629448664,158.66558179,146.57,146.53,17.8172544]
[1746629449073,20.96558179,146.56,146.53,17.8172544]
[1746629449400,20.96558179,146.54,146.53,17.8172544]
[1746629449587,20.96558179,146.55,146.53,17.8172544]
[1746629449777,137.7,146.56,146.53,17.8172544]
[1746629451291,20.96558179,146.55,146.53,17.8172544]
[1746629451467,20.96558179,146.54,146.53,17.8172544]
[1746629452282,20.96558179,146.54,146.51,23.35983149]
[1746629452594,20.96558179,146.53,146.51,23.35983149]
[1746629453163,20.96558179,146.52,146.51,23.35983149]
[1746629453582,20.96558179,146.53,146.51,23.35983149]
[1746629454778,20.96558179,146.52,146.51,23.35983149]
[1746629457270,27.79058861,146.52,146.51,23.35983149]
[1746629457869,20.96558179,146.52,146.51,23.35983149]
[1746629458189,27.79058861,146.52,146.51,23.35983149]
[1746629460290,20.96558179,146.52,146.51,23.35983149]
[1746629464482,26.0,146.53,146.51,23.35983149]
[1746629464683,20.96558179,146.53,146.51,23.35983149]
[1746629464887,20.96558179,146.52,146.51,23.35983149]
[1746629465901,137.7,146.54,146.51,23.35983149]
[1746629466100,20.96558179,146.53,146.51,23.35983149]
[1746629466773,137.7,146.54,146.51,23.35983149]
[1746629467893,20.96558179,146.55,146.51,23.35983149]
[1746629468196,46.96558179,146.56,146.52,17.78]
[1746629468796,20.96558179,146.53,146.51,23.35983149]
[1746629469104,20.96558179,146.52,146.51,23.35983149]
[1746629470090,26.0,146.52,146.51,23.35983149]
[1746629470296,46.96558179,146.52,146.51,23.35983149]
[1746629471185,137.7,146.55,146.51,23.35983149]
[1746629471388,20.96558179,146.53,146.51,23.35983149]
[1746629471586,26.0,146.54,146.51,23.35983149]
[1746629471587,46.96558179,146.54,146.51,23.35983149]
[1746629472104,20.96558179,146.53,146.51,23.35983149]
[1746629472395,26.0,146.54,146.51,23.35983149]
[1746629472807,20.96558179,146.53,146.51,23.35983149]